fUSD/lending_fUSD_20260207
["ID","MTS","AMOUNT","RATE_DAILY","PERIOD"]
[404699647,1770481838644,-372.6445912,0.00013791,2]
[404699649,1770481838655,-500.0,0.00013791,2]
[404699651,1770481838665,-500.0,0.00013791,2]
[404699653,1770481838674,-500.0,0.00013791,2]
[404699655,1770481838684,-195.91581425,0.00013792,2]
[404699657,1770481838694,-500.0,0.00013792,2]
[404699659,1770481838704,-500.0,0.00013792,2]
[404699661,1770481838714,-500.0,0.00013792,2]
[404699663,1770481838724,-500.0,0.00013792,2]
[404699665,1770481838735,-414.30464308,0.00013792,2]
[404699667,1770481838745,-500.0,0.00013792,2]
[404699669,1770481838755,-572.56663973,0.00013792,2]
[404699671,1770481838765,-500.0,0.00013792,2]
[404699674,1770481838779,-500.0,0.00013792,2]
[404699676,1770481838789,-1702414.53810142,0.00013793,2]
[404699679,1770481838802,-756.0241998,0.00013793,2]
[404699820,1770481840236,-2784.03994496,0.00013793,2]
[404699848,1770481840502,-450.80774741,0.00013793,2]
[404699851,1770481840513,-701.4531592,0.00013793,2]
[404699873,1770481840718,-479.9923943,0.00013793,2]
[404699960,1770481844508,-250.07245891,0.0001372,2]
[404699961,1770481844518,-151.0,0.0001379,2]
[404699962,1770481844528,-1292.12031432,0.00013793,2]
[404699963,1770481845863,-282.21026124,0.00013793,2]
[404699964,1770481845874,-254.43820228,0.00013793,2]
[404699991,1770481846353,-150.0,0.0001382,2]
[404699994,1770481846363,-171.58,0.00013828,2]
[404699996,1770481846375,-200.0,0.00013875,2]
[404699998,1770481846385,-500.0,0.00013892,2]
[404700000,1770481846394,-2439.38157395,0.00013893,2]
[404700002,1770481846405,-6253.21842605,0.00013893,2]
[404700004,1770481846415,-349.37699523,0.00014003,2]
[404700006,1770481846425,-200.0,0.00014008,2]
[404700008,1770481846434,-275.02375697,0.00014078,2]
[404700032,1770482138986,-155.8658331,0.00013218,2]
[404700033,1770482139089,-329.897172,0.00013218,2]
[404700034,1770482139196,-348.84792693,0.00013218,2]
[404700064,1770483031776,-1457.68,0.00011233,2]
[404700065,1770483031788,-166.66,0.00011735,2]
[404700066,1770483031798,-153.20702956,0.00011735,2]
[404700067,1770483031812,-166.66,0.00011982,2]
[404700068,1770483031821,-500.0,0.00012094,2]
[404700069,1770483031839,-108968.88,0.00012095,2]
[404700070,1770483031851,-150.0,0.00012098,2]
[404700071,1770483031862,-500.0,0.00012126,2]
[404700072,1770483031874,-166.66,0.00012229,2]
[404700073,1770483031886,-250.0,0.00012356,2]
[404700074,1770483031896,-300.0,0.00012448,2]
[404700075,1770483031907,-1200.0,0.00012448,2]
[404700076,1770483031919,-9219.86,0.00012449,2]
[404700077,1770483031929,-3724.64,0.00012462,2]
[404700078,1770483031939,-166.66,0.00012476,2]
[404700079,1770483031948,-200.0,0.0001251,2]
[404700080,1770483031958,-6163.93,0.00012518,2]
[404700081,1770483031967,-1852.42,0.00012613,2]
[404700082,1770483031977,-166.66,0.00012723,2]
[404700083,1770483031987,-250.0,0.00012908,2]
[404700084,1770483031997,-253.29548484,0.00012908,2]
[404700085,1770483032006,-250.0,0.00012908,2]
[404700086,1770483032015,-166.66,0.0001297,2]
[404700087,1770483032025,-2193.43,0.00012992,2]
[404700088,1770483032034,-3990.913,0.00013023,2]
[404700089,1770483032043,-331.333,0.00013023,2]
[404700090,1770483032053,-6729.0128,0.00013089,2]
[404700091,1770483032062,-150.0,0.00013117,2]
[404700092,1770483032071,-463.0067,0.00013118,2]
[404700093,1770483032082,-299.99,0.00013118,2]
[404700094,1770483032091,-4608.89,0.00013118,2]
[404700095,1770483032101,-150.99,0.00013118,2]
[404700096,1770483032112,-150.99,0.00013118,2]
[404700097,1770483032122,-9999.99,0.00013118,2]
[404700098,1770483032132,-9999.99,0.00013118,2]
[404700099,1770483032141,-499.99,0.00013118,2]
[404700100,1770483032151,-999.99,0.00013118,2]
[404700101,1770483032160,-471.63,0.00013118,2]
[404700102,1770483032170,-386.0,0.00013157,2]
[404700103,1770483032180,-246.65,0.00013165,2]
[404700104,1770483032189,-500.0,0.00013188,2]
[404700105,1770483032199,-500.0,0.00013188,2]
[404700106,1770483032208,-500.0,0.00013188,2]
[404700107,1770483032217,-500.0,0.00013188,2]
[404700108,1770483032227,-10000.0,0.00013189,2]
[404700109,1770483032236,-2500.0,0.00013189,2]
[404700110,1770483032246,-153.05582933,0.00013189,2]
[404700111,1770483032256,-44695.30920149,0.00013189,2]
[404700112,1770483032265,-468.0,0.0001322,2]
[404700113,1770483032274,-1150.0,0.00013244,2]
[404700114,1770483032284,-500.0,0.00013281,2]
[404700115,1770483032293,-500.0,0.00013281,2]
[404700116,1770483032303,-500.0,0.00013281,2]
[404700117,1770483032313,-500.0,0.00013281,2]
[404700118,1770483032325,-500.0,0.00013281,2]
[404700119,1770483032334,-500.0,0.00013281,2]
[404700120,1770483032343,-200.0,0.00013281,2]
[404700121,1770483032354,-500.0,0.00013281,2]
[404700122,1770483032365,-500.0,0.00013281,2]
[404700123,1770483032374,-500.0,0.00013281,2]
[404700124,1770483032386,-500.0,0.00013281,2]
[404700125,1770483032397,-500.0,0.00013281,2]
[404700126,1770483032407,-500.0,0.00013281,2]
[404700127,1770483032416,-500.0,0.00013281,2]
[404700128,1770483032426,-500.0,0.00013281,2]
[404700129,1770483032435,-314.32390785,0.00013281,2]
[404700130,1770483032445,-500.0,0.00013281,2]
[404700131,1770483032454,-500.0,0.00013281,2]
[404700132,1770483032464,-500.0,0.00013281,2]
[404700133,1770483032473,-151.0,0.00013281,2]
[404700134,1770483032482,-500.0,0.00013281,2]
[404700135,1770483032491,-151.0,0.00013281,2]
[404700136,1770483032501,-151.0,0.00013281,2]
[404700137,1770483032510,-151.0,0.00013281,2]
[404700138,1770483032519,-151.0,0.00013281,2]
[404700139,1770483032528,-151.0,0.00013281,2]
[404700140,1770483032538,-151.0,0.00013281,2]
[404700141,1770483032547,-151.0,0.00013281,2]
[404700142,1770483032556,-151.0,0.00013281,2]
[404700143,1770483032565,-151.0,0.00013281,2]
[404700144,1770483032574,-151.0,0.00013281,2]
[404700145,1770483032584,-200.0,0.00013281,2]
[404700146,1770483032593,-151.0,0.00013281,2]
[404700147,1770483032602,-151.0,0.00013281,2]
[404700148,1770483032612,-151.0,0.00013281,2]
[404700149,1770483032622,-151.0,0.00013281,2]
[404700150,1770483032641,-151.0,0.00013281,2]
[404700151,1770483032653,-151.0,0.00013281,2]
[404700152,1770483032662,-151.0,0.00013281,2]
[404700153,1770483032673,-151.0,0.00013281,2]
[404700154,1770483032683,-151.0,0.00013281,2]
[404700155,1770483032698,-500.0,0.00013281,2]
[404700156,1770483032709,-151.0,0.00013281,2]
[404700157,1770483032718,-263.99350842,0.00013281,2]
[404700158,1770483032729,-151.0,0.00013281,2]
[404700159,1770483032739,-151.0,0.00013281,2]
[404700160,1770483032749,-151.0,0.00013281,2]
[404700161,1770483032759,-151.0,0.00013281,2]
[404700162,1770483032769,-151.0,0.00013281,2]
[404700163,1770483032780,-151.0,0.00013281,2]
[404700164,1770483032791,-151.0,0.00013281,2]
[404700165,1770483032800,-151.0,0.00013281,2]
[404700166,1770483032809,-151.0,0.00013281,2]
[404700167,1770483032819,-151.0,0.00013281,2]
[404700168,1770483032830,-151.0,0.00013281,2]
[404700169,1770483032839,-500.0,0.00013281,2]
[404700170,1770483032849,-274.11843235,0.00013281,2]
[404700171,1770483032858,-500.0,0.00013288,2]
[404700172,1770483032869,-500.0,0.00013288,2]
[404700173,1770483032880,-500.0,0.00013288,2]
[404700174,1770483032901,-500.0,0.00013288,2]
[404700175,1770483032919,-572.56663973,0.00013288,2]
[404700176,1770483032929,-500.0,0.00013288,2]
[404700177,1770483032940,-370.0,0.00013328,2]
[404700178,1770483032952,-1058.52,0.00013388,2]
[404700179,1770483032963,-33304.9777,0.00013389,2]
[404700180,1770483032974,-914.0,0.00013581,2]
[404700181,1770483032985,-218.25268962,0.00013601,2]
[404700182,1770483032995,-150.0,0.00013601,2]
[404700183,1770483033005,-500.0,0.00013601,2]
[404700184,1770483033016,-500.0,0.00013601,2]
[404700185,1770483033026,-500.0,0.00013601,2]
[404700186,1770483033035,-150.0,0.00013601,2]
[404700187,1770483033046,-150.0,0.00013601,2]
[404700188,1770483033056,-150.0,0.00013601,2]
[404700189,1770483033066,-150.0,0.00013601,2]
[404700190,1770483033076,-150.0,0.00013601,2]
[404700191,1770483033086,-500.0,0.00013601,2]
[404700192,1770483033096,-150.0,0.00013601,2]
[404700193,1770483033106,-500.0,0.00013601,2]
[404700194,1770483033116,-150.0,0.00013601,2]
[404700195,1770483033126,-500.0,0.00013601,2]
[404700196,1770483033140,-150.0,0.00013601,2]
[404700197,1770483033150,-500.0,0.00013601,2]
[404700198,1770483033160,-500.0,0.00013601,2]
[404700199,1770483033169,-150.0,0.00013601,2]
[404700200,1770483033179,-44695.30920145,0.00013601,2]
[404700201,1770483033450,-500.0,0.00013616,2]
[404700202,1770483033460,-488.0,0.00013652,2]
[404700203,1770483033470,-150.0,0.00013656,2]
[404700204,1770483033480,-500.0,0.00013656,2]
[404700205,1770483033490,-501.68337688,0.00013656,2]
[404700206,1770483033499,-500.0,0.00013656,2]
[404700207,1770483033508,-150.0,0.00013656,2]
[404700208,1770483033518,-150.0,0.00013656,2]
[404700209,1770483033528,-150.0,0.00013656,2]
[404700210,1770483033537,-150.0,0.00013656,2]
[404700211,1770483033546,-150.0,0.00013656,2]
[404700212,1770483033556,-500.0,0.00013656,2]
[404700213,1770483033565,-500.0,0.00013656,2]
[404700214,1770483033575,-202.65824517,0.00013656,2]
[404700215,1770483033585,-505.69787542,0.00013656,2]
[404700216,1770483033594,-500.0,0.00013656,2]
[404700217,1770483033603,-500.0,0.00013656,2]
[404700218,1770483033613,-420.0,0.00013659,2]
[404700219,1770483033622,-1058.52,0.00013662,2]
[404700220,1770483033633,-3431.04985565,0.00013693,2]
[404700221,1770483033642,-1548.0,0.00013693,2]
[404700222,1770483033651,-200.0,0.00013698,2]
[404700223,1770483033661,-500.0,0.00013698,2]
[404700224,1770483033670,-588.82231824,0.00013698,2]
[404700225,1770483033679,-200.0,0.00013711,2]
[404700226,1770483033688,-500.0,0.00013711,2]
[404700227,1770483033697,-500.0,0.00013711,2]
[404700228,1770483033707,-150.0,0.00013711,2]
[404700229,1770483033716,-202.76989471,0.00013711,2]
[404700230,1770483033726,-150.0,0.00013711,2]
[404700231,1770483033735,-201.00303104,0.00013711,2]
[404700232,1770483033745,-150.0,0.00013711,2]
[404700233,1770483033754,-500.0,0.00013711,2]
[404700234,1770483033767,-500.0,0.00013711,2]
[404700235,1770483033780,-500.0,0.00013711,2]
[404700236,1770483033790,-500.0,0.00013711,2]
[404700237,1770483033800,-254.0,0.00013757,2]
[404700238,1770483033809,-500.0,0.00013765,2]
[404700239,1770483033819,-500.0,0.00013765,2]
[404700240,1770483033831,-150.0,0.00013765,2]
[404700241,1770483033841,-150.0,0.00013765,2]
[404700242,1770483033850,-150.0,0.00013765,2]
[404700243,1770483033860,-500.0,0.00013765,2]
[404700244,1770483033869,-500.0,0.00013765,2]
[404700245,1770483033879,-500.0,0.00013765,2]
[404700246,1770483033889,-500.0,0.00013765,2]
[404700247,1770483033899,-386.0,0.00013774,2]
[404700248,1770483033909,-151.0,0.0001379,2]
[404700249,1770483033919,-151.0,0.0001379,2]
[404700250,1770483033929,-500.0,0.00013792,2]
[404700251,1770483033938,-500.0,0.00013792,2]
[404700252,1770483033948,-500.0,0.00013792,2]
[404700253,1770483033958,-500.0,0.00013792,2]
[404700254,1770483033971,-500.0,0.00013792,2]
[404700255,1770483033983,-628.78025152,0.00013792,2]
[404700256,1770483033993,-342.2258331,0.00013792,2]
[404700257,1770483034003,-500.0,0.00013792,2]
[404700258,1770483034013,-500.0,0.00013792,2]
[404700259,1770483034023,-500.0,0.00013792,2]
[404700260,1770483034034,-500.0,0.00013792,2]
[404700261,1770483034044,-500.0,0.00013792,2]
[404700262,1770483034054,-500.0,0.00013792,2]
[404700263,1770483034066,-500.0,0.00013792,2]
[404700264,1770483034076,-500.0,0.00013792,2]
[404700265,1770483034086,-500.0,0.00013792,2]
[404700266,1770483034097,-500.0,0.00013792,2]
[404700267,1770483034107,-500.0,0.00013792,2]
[404700268,1770483034117,-500.0,0.00013792,2]
[404700269,1770483034129,-500.0,0.00013792,2]
[404700270,1770483034139,-344.1341669,0.00013792,2]
[404700271,1770483034149,-221445.449191,0.00013793,2]
[404700272,1770483034159,-1469.9935211,0.00013793,2]
[404700273,1770483034168,-19236.2590051,0.00013793,2]
[404700274,1770483034178,-9194.581277,0.00013793,2]
[404700275,1770483034187,-218250.6222254,0.00013793,2]
[404700276,1770483034197,-40298.174934,0.00013794,2]
[404700277,1770483034206,-386.0,0.00013812,2]
[404700278,1770483034216,-386.0,0.00013813,2]
[404700279,1770483034226,-500.0,0.0001382,2]
[404700280,1770483034236,-150.0,0.0001382,2]
[404700281,1770483034246,-500.0,0.0001382,2]
[404700282,1770483034256,-220.49203217,0.0001382,2]
[404700283,1770483034265,-191.0,0.0001382,2]
[404700284,1770483034279,-500.0,0.0001382,2]
[404700285,1770483034289,-500.0,0.0001382,2]
[404700286,1770483034298,-500.0,0.0001382,2]
[404700287,1770483034310,-500.0,0.0001382,2]
[404700288,1770483034321,-386.0,0.00013823,2]
[404700289,1770483034332,-200.0,0.00013829,2]
[404700290,1770483034342,-500.0,0.00013875,2]
[404700291,1770483034351,-250.0,0.00013875,2]
[404700292,1770483034362,-440.0,0.00013875,2]
[404700293,1770483034372,-500.0,0.00013875,2]
[404700294,1770483034384,-377.98822722,0.00013875,2]
[404700295,1770483034395,-500.0,0.00013875,2]
[404700296,1770483034413,-500.0,0.00013875,2]
[404700297,1770483034423,-386.0,0.00013911,2]
[404700298,1770483034433,-1058.52,0.00013936,2]
[404700299,1770483034443,-386.0,0.00013945,2]
[404700300,1770483034453,-386.0,0.00013988,2]
[404700301,1770483034463,-250.0,0.00014008,2]
[404700302,1770483034474,-44695.30920145,0.00014014,2]
[404700303,1770483034489,-386.0,0.00014073,2]
[404700304,1770483034499,-386.0,0.0001413,2]
[404700305,1770483034510,-386.0,0.00014146,2]
[404700306,1770483034520,-3431.04985561,0.0001416,2]
[404700307,1770483034531,-1058.52,0.0001421,2]
[404700308,1770483034540,-3353.79,0.00014212,2]
[404700309,1770483034550,-255.0,0.00014219,2]
[404700310,1770483034560,-386.0,0.00014269,2]
[404700311,1770483034570,-386.0,0.00014275,2]
[404700312,1770483034579,-441.0,0.00014277,2]
[404700313,1770483034589,-386.0,0.00014369,2]
[404700314,1770483034599,-10067.30710929,0.0001439,2]
[404700315,1770483034609,-151.0,0.0001439,2]
[404700316,1770483034619,-386.0,0.00014392,2]
[404700317,1770483034630,-386.0,0.00014394,2]
[404700318,1770483034639,-386.0,0.00014422,2]
[404700319,1770483034648,-44695.30920145,0.00014426,2]
[404700320,1770483034657,-386.0,0.0001444,2]
[404700321,1770483034667,-1058.52,0.00014484,2]
[404700322,1770483034682,-1500.0,0.000145,2]
[404700323,1770483034693,-862.2,0.0001451,2]
[404700324,1770483034703,-386.0,0.00014543,2]
[404700325,1770483034712,-3240.0,0.00014551,2]
[404700326,1770483034722,-1000.0,0.0001457,2]
[404700327,1770483034732,-4860.0303,0.0001457,2]
[404700328,1770483034742,-171.58,0.00014596,2]
[404700329,1770483034751,-386.0,0.00014609,2]
[404700330,1770483034761,-3431.04985561,0.00014628,2]
[404700331,1770483034771,-390.0,0.0001463,2]
[404700332,1770483034780,-1058.52,0.00014758,2]
[404700333,1770483034790,-390.0,0.00014799,2]
[404700334,1770483034799,-44695.30920145,0.00014838,2]
[404700335,1770483034809,-386.0,0.00014845,2]
[404700336,1770483034818,-500.0,0.00014858,2]
[404700337,1770483034828,-386.0,0.0001488,2]
[404700338,1770483034838,-200.0,0.00014905,2]
[404700339,1770483034849,-386.0,0.00014972,2]
[404700340,1770483034859,-587.0,0.00014988,2]
[404700341,1770483034868,-418.3342562,0.00015,2]
[404700342,1770483034881,-153.20702956,0.00015006,2]
[404700343,1770483034891,-1000.0,0.00015012,2]
[404700344,1770483034900,-1000.0,0.00015012,2]
[404700345,1770483034910,-1000.0,0.00015012,2]
[404700346,1770483034921,-1000.0,0.00015012,2]
[404700347,1770483034931,-1000.0,0.00015012,2]
[404700348,1770483034941,-1000.0,0.00015012,2]
[404700349,1770483034952,-1000.0,0.00015012,2]
[404700350,1770483034962,-1000.0,0.00015012,2]
[404700351,1770483034972,-1000.0,0.00015012,2]
[404700352,1770483034982,-1000.0,0.00015012,2]
[404700353,1770483034991,-1000.0,0.00015012,2]
[404700354,1770483035003,-506.851,0.00015012,2]
[404700355,1770483035013,-1058.52,0.00015032,2]
[404700356,1770483035023,-699.29,0.00015068,2]
[404700357,1770483035033,-200.0,0.00015075,2]
[404700358,1770483035042,-3431.04985561,0.00015095,2]
[404700359,1770483035053,-200.0,0.00015101,2]
[404700360,1770483035062,-386.0,0.00015104,2]
[404700361,1770483035071,-386.0,0.00015114,2]
[404700362,1770483035082,-386.0,0.00015155,2]
[404700363,1770483035092,-407.26017224,0.00015155,2]
[404700364,1770483035103,-500.0,0.00015173,2]
[404700365,1770483035112,-500.0,0.00015173,2]
[404700366,1770483035121,-347.37162909,0.00015173,2]
[404700367,1770483035133,-500.32773818,0.00015173,2]
[404700368,1770483035143,-500.0,0.00015173,2]
[404700369,1770483035153,-386.0,0.0001522,2]
[404700370,1770483035163,-862.2,0.00015236,2]
[404700371,1770483035173,-437.4,0.00015243,2]
[404700372,1770483035184,-44695.30920145,0.00015251,2]
[404700373,1770483035194,-1469.9935211,0.00015255,2]
[404700374,1770483035203,-9194.581277,0.00015255,2]
[404700375,1770483035214,-1517.64,0.000153,2]
[404700376,1770483035223,-1058.59311889,0.00015305,2]
[404700377,1770483035233,-200.0,0.00015316,2]
[404700378,1770483035242,-386.0,0.00015326,2]
[404700379,1770483035252,-171.58,0.00015364,2]
[404700380,1770483035262,-386.0,0.00015367,2]
[404700381,1770483035272,-386.0,0.00015388,2]
[404700382,1770483035282,-390.0,0.00015392,2]
[404700383,1770483035291,-508.98092527,0.000154,2]
[404700384,1770483035302,-200.0,0.00015407,2]
[404700385,1770483035316,-155.0,0.00015413,2]
[404700386,1770483035326,-386.0,0.00015416,2]
[404700387,1770483035336,-390.0,0.00015428,2]
[404700388,1770483035345,-414.0,0.00015435,2]
[404700389,1770483035357,-386.0,0.0001551,2]
[404700390,1770483035367,-500.0,0.00015513,2]
[404700391,1770483035376,-500.0,0.00015513,2]
[404700392,1770483035387,-500.0,0.00015513,2]
[404700393,1770483035397,-500.0,0.00015513,2]
[404700394,1770483035406,-500.0,0.00015513,2]
[404700395,1770483035416,-500.0,0.00015513,2]
[404700396,1770483035425,-500.0,0.00015513,2]
[404700397,1770483035434,-500.0,0.00015513,2]
[404700398,1770483035444,-166.7149726,0.00015545,2]
[404700399,1770483035454,-3431.04985561,0.00015563,2]
[404700400,1770483035463,-386.0,0.00015573,2]
[404700401,1770483035473,-150.0,0.00015599,2]
[404700402,1770483035482,-231.06460488,0.00015613,2]
[404700403,1770483035492,-980.69029886,0.00015613,2]
[404700404,1770483035502,-2000.0,0.0001562,2]
[404700405,1770483035510,-151.0,0.0001566,2]
[404700406,1770483035520,-44695.30920145,0.00015663,2]
[404700407,1770483035530,-200.0,0.00015689,2]
[404700408,1770483035539,-500.0,0.00015721,2]
[404700409,1770483035549,-1006.10959782,0.00015721,2]
[404700410,1770483035558,-166.66,0.00015806,2]
[404700411,1770483035568,-2242.91870603,0.00015807,2]
[404700412,1770483035578,-246.65,0.00015869,2]
[404700413,1770483035589,-200.0,0.00015914,2]
[404700414,1770483035599,-200.0,0.00015916,2]
[404700415,1770483035609,-242.647236,0.00015937,7]
[404700416,1770483035618,-1000.0,0.00015957,2]
[404700417,1770483035629,-3760.25951815,0.0001596,2]
[404700418,1770483035639,-862.2,0.00015961,2]
[404700419,1770483035649,-161.0,0.00016,2]
[404700420,1770483035659,-500.0,0.0001602,2]
[404700421,1770483035669,-3431.04985561,0.0001603,2]
[404700422,1770483035679,-44695.30920145,0.00016075,2]
[404700423,1770483035689,-200.0,0.00016077,2]
[404700424,1770483035700,-9999.99,0.00016116,2]
[404700425,1770483035710,-171.58,0.00016132,2]
[404700426,1770483035719,-151.0,0.00016182,2]
[404700427,1770483035730,-151.0,0.00016182,2]
[404700428,1770483035740,-49411.1585421,0.00016182,2]
[404700429,1770483035749,-4292.1895524,0.00016182,2]
[404700430,1770483035758,-48698.2962896,0.00016182,2]
[404700431,1770483035768,-8991.7382267,0.00016184,2]
[404700432,1770483035778,-166.66,0.00016328,2]
[404700433,1770483035788,-1182.38185176,0.00016401,5]
[404700434,1770483035797,-699.29,0.00016438,2]
[404700435,1770483035807,-800.0,0.00016438,2]
[404700436,1770483035816,-151.0,0.00016438,2]
[404700437,1770483035826,-283.0,0.00016446,2]
[404700438,1770483035836,-44695.30920145,0.00016488,2]
[404700439,1770483035846,-3431.04985561,0.00016498,2]
[404700440,1770483035857,-168.37,0.00016528,2]
[404700441,1770483035867,-200.0,0.0001656,2]
[404700442,1770483035876,-200.0,0.00016562,3]
[404700443,1770483035887,-168.0,0.00016608,2]
[404700444,1770483035897,-500.0,0.00016658,2]
[404700445,1770483035906,-237.3935,0.00016673,2]
[404700446,1770483035916,-862.2,0.00016687,2]
[404700447,1770483035926,-165.75,0.00016712,2]
[404700448,1770483035936,-11025.1197186,0.00016716,2]
[404700449,1770483035946,-957.7169422,0.00016716,2]
[404700450,1770483035955,-10866.05865,0.00016716,2]
[404700451,1770483035965,-160.0,0.00016717,2]
[404700452,1770483035974,-1469.9935211,0.00016717,2]
[404700453,1770483035984,-9194.581277,0.00016717,2]
[404700454,1770483035994,-2006.3279905,0.00016717,2]
[404700455,1770483036003,-163.0,0.0001672,2]
[404700456,1770483036012,-500.0,0.00016773,2]
[404700457,1770483036022,-500.0,0.00016773,2]
[404700458,1770483036032,-500.0,0.00016773,2]
[404700459,1770483036042,-500.0,0.00016773,2]
[404700460,1770483036052,-500.0,0.00016773,2]
[404700461,1770483036062,-500.0,0.00016773,2]
[404700462,1770483036071,-500.0,0.00016773,2]
[404700463,1770483036081,-500.0,0.00016773,2]
[404700464,1770483036090,-500.0,0.00016773,2]
[404700465,1770483036100,-500.0,0.00016773,2]
[404700466,1770483036109,-500.0,0.00016773,2]
[404700467,1770483036119,-500.0,0.00016773,2]
[404700468,1770483036129,-500.0,0.00016773,2]
[404700469,1770483036138,-500.0,0.00016773,2]
[404700470,1770483036148,-500.0,0.00016773,2]
[404700471,1770483036158,-500.0,0.00016773,2]
[404700472,1770483036167,-500.0,0.00016773,2]
[404700473,1770483036177,-500.0,0.00016773,2]
[404700474,1770483036186,-511.17251501,0.00016773,2]
[404700475,1770483036196,-500.0,0.00016773,2]
[404700476,1770483036205,-500.0,0.00016773,2]
[404700477,1770483036215,-500.0,0.00016773,2]
[404700478,1770483036225,-262.39107038,0.00016773,2]
[404700479,1770483036234,-500.0,0.00016773,2]
[404700480,1770483036244,-500.0,0.00016773,2]
[404700481,1770483036254,-500.0,0.00016773,2]
[404700482,1770483036263,-500.0,0.00016773,2]
[404700483,1770483036273,-272.6165883,0.00016773,2]
[404700484,1770483036283,-500.0,0.00016773,2]
[404700485,1770483036293,-500.0,0.00016773,2]
[404700486,1770483036303,-500.0,0.00016773,2]
[404700487,1770483036315,-500.0,0.00016773,2]
[404700488,1770483036328,-160.144,0.00016773,2]
[404700489,1770483036337,-500.0,0.00016773,2]
[404700490,1770483036347,-500.0,0.00016773,2]
[404700491,1770483036357,-500.0,0.00016773,2]
[404700492,1770483036367,-500.0,0.00016773,2]
[404700493,1770483036377,-168.0,0.00016804,2]
[404700494,1770483036389,-168.0,0.00016807,2]
[404700495,1770483036399,-166.66,0.0001685,2]
[404700496,1770483036409,-151.0,0.00016897,2]
[404700497,1770483036419,-44695.30920145,0.000169,2]
[404700498,1770483036429,-171.58,0.000169,2]
[404700499,1770483036439,-168.0,0.00016907,2]
[404700500,1770483036448,-200.0,0.00016922,3]
[404700501,1770483036458,-437.4,0.00016936,2]
[404700502,1770483036467,-168.0,0.00016945,2]
[404700503,1770483036477,-3431.04985561,0.00016965,2]
[404700504,1770483036486,-151.0,0.00016997,2]
[404700505,1770483036496,-500.0,0.00017,2]
[404700506,1770483036506,-672895.54320746,0.00017,2]
[404700507,1770483036515,-203.033543,0.00017,2]
[404700508,1770483036525,-151.0,0.00017,2]
[404700509,1770483036534,-168.0,0.00017022,2]
[404700510,1770483036544,-163.0,0.0001704,2]
[404700511,1770483036553,-168.0,0.00017073,2]
[404700512,1770483036563,-168.0,0.00017078,2]
[404700513,1770483036573,-168.0,0.0001709,2]
[404700514,1770483036582,-168.0,0.00017108,2]
[404700515,1770483036591,-168.0,0.00017135,2]
[404700516,1770483036601,-246.65,0.00017142,2]
[404700517,1770483036610,-168.0,0.00017167,2]
[404700518,1770483036619,-168.0,0.00017177,2]
[404700519,1770483036630,-168.0,0.0001718,2]
[404700520,1770483036640,-168.0,0.00017183,2]
[404700521,1770483036649,-168.0,0.00017243,2]
[404700522,1770483036659,-168.0,0.0001728,2]
[404700523,1770483036669,-164.1117073,0.0001732,2]
[404700524,1770483036679,-500.0,0.00017321,2]
[404700525,1770483036689,-500.0,0.00017321,2]
[404700526,1770483036699,-500.0,0.00017321,2]